bitfinex-derivatives/quotes_BTCF0:USTF0_20260113
["timestamp","ask_amount","ask_price","bid_price","bid_amount"]
[1768293436374,0.09755398,92215.0,92200.0,0.13084276]
[1768293437078,0.09755398,92215.0,92198.0,0.00016273]
[1768293437274,0.09755398,92215.0,92191.0,0.08087953]
[1768293438580,0.19531398,92215.0,92191.0,0.08087953]
[1768293439176,0.09755398,92214.0,92191.0,0.08087953]
[1768293439785,0.09755398,92205.0,92188.0,0.09776]
[1768293440081,0.09755398,92205.0,92184.0,0.04963428]
[1768293440872,0.09755398,92205.0,92184.0,0.03877628]
[1768293441478,0.09755398,92205.0,92181.0,0.1934768]
[1768293446785,0.09755398,92204.0,92181.0,0.1934768]
[1768293447788,0.09755398,92204.0,92181.0,0.2043348]
[1768293447972,0.09755398,92204.0,92190.0,0.1470428]
[1768293449187,0.09755398,92210.0,92190.0,0.1470428]
[1768293449486,0.09755398,92210.0,92191.0,0.010857]
[1768293450287,0.09771671,92216.0,92200.0,0.1470428]
[1768293450475,0.09755398,92215.0,92191.0,0.09772]
[1768293450787,0.00016273,92216.0,92192.0,0.09772]
[1768293450788,0.09755398,92212.0,92192.0,0.09772]
[1768293451378,0.09755398,92212.0,92192.0,0.108577]
[1768293456089,0.18906063,92211.0,92192.0,0.108577]
[1768293456388,0.09232547,92210.0,92192.0,0.09772]
[1768293457877,0.09673516,92205.0,92185.0,0.03877628]
[1768293458077,0.00016273,92216.0,92185.0,0.09772]
[1768293458078,0.09673516,92203.0,92185.0,0.09772]
[1768293458284,0.09232547,92202.0,92185.0,0.09772]
[1768293458780,0.09232547,92202.0,92186.0,0.010858]
[1768293458983,0.09232547,92202.0,92189.0,0.010858]
[1768293459184,0.09232547,92202.0,92190.0,0.1470428]
[1768293459385,0.00016273,92216.0,92185.0,0.13649628]
[1768293459386,0.09232547,92215.0,92193.0,0.09527423]
[1768293459588,0.09232547,92212.0,92200.0,0.13071169]
[1768293459790,0.09232547,92211.0,92200.0,0.13071169]
[1768293459979,0.09232547,92211.0,92200.0,0.10771169]
[1768293462589,0.09772,92215.0,92200.0,0.23842338]
[1768293462785,0.00016273,92216.0,92205.0,0.13071169]
[1768293463287,0.00016273,92216.0,92200.0,0.13067826]
[1768293465681,0.09772,92217.0,92201.0,0.10613023]
[1768293466084,0.18906063,92216.0,92199.0,0.00016273]
[1768293466284,0.18906063,92215.0,92199.0,0.00016273]
[1768293466484,0.49716273,92222.0,92199.0,0.00016273]
[1768293466485,0.18906063,92214.0,92199.0,0.00016273]
[1768293466783,0.88136,92232.0,92199.0,0.00016273]
[1768293466784,0.02983017,92238.0,92223.0,0.09527423]
[1768293466985,0.09772,92247.0,92228.0,0.13067826]
[1768293467179,0.09232547,92249.0,92227.0,0.010853]
[1768293467393,0.09232547,92249.0,92230.0,0.010853]
[1768293467394,0.09772,92248.0,92230.0,0.010853]
[1768293467589,0.09772,92248.0,92223.0,0.09527423]
[1768293467590,0.09232547,92249.0,92223.0,0.09527423]
[1768293467793,0.09772,92248.0,92224.0,0.010853]
[1768293467994,0.19004547,92248.0,92224.0,0.010853]
[1768293468190,0.09232547,92248.0,92224.0,0.010853]
[1768293468391,0.09772,92247.0,92227.0,0.00016264]
[1768293469893,0.28678063,92247.0,92227.0,0.00016264]
[1768293470099,0.18906063,92246.0,92227.0,0.00016264]
[1768293470292,0.18906063,92245.0,92227.0,0.00016264]
[1768293470494,0.09232547,92244.0,92227.0,0.00016264]
[1768293470692,0.18906063,92244.0,92227.0,0.00016264]
[1768293470894,0.09232547,92243.0,92227.0,0.00016264]
[1768293471395,0.05,92250.0,92232.0,0.07080328]
[1768293471601,0.09232547,92260.0,92237.0,0.05995128]
[1768293471602,0.09772,92254.0,92237.0,0.05995128]
[1768293472097,0.09232547,92260.0,92238.0,0.07080328]
[1768293472303,0.09772,92255.0,92238.0,0.07080328]
[1768293472604,0.09772,92254.0,92238.0,0.07080328]
[1768293473104,0.09772,92255.0,92238.0,0.07080328]
[1768293473494,0.09772,92255.0,92238.0,0.010852]
[1768293474699,0.09232547,92260.0,92238.0,0.07112907]
[1768293475003,0.09772,92259.0,92241.0,0.010851]
[1768293475499,0.09772,92259.0,92238.0,0.05212807]
[1768293475702,0.19004547,92259.0,92238.0,0.05212807]
[1768293476489,0.09673516,92257.0,92235.0,0.010852]
[1768293476694,0.09232547,92256.0,92235.0,0.010852]
[1768293476910,0.09673516,92255.0,92235.0,0.010852]
[1768293477202,0.09232547,92253.0,92235.0,0.010852]
[1768293477594,0.09232547,92253.0,92238.0,0.010852]
[1768293479005,0.09768,92252.0,92238.0,0.010852]
[1768293479201,0.19000547,92252.0,92238.0,0.010852]
[1768293479407,0.09232547,92251.0,92238.0,0.010852]
[1768293479602,0.18906063,92250.0,92234.0,0.010852]
[1768293479801,0.18906063,92248.0,92234.0,0.010852]
[1768293480003,0.09232547,92246.0,92234.0,0.010852]
[1768293480205,0.09232547,92244.0,92227.0,0.00016264]
[1768293480709,0.09232547,92244.0,92227.0,0.01101564]
[1768293480898,0.09232547,92244.0,92230.0,0.010853]
[1768293481100,0.09232547,92244.0,92220.0,0.02907242]
[1768293481101,0.18906063,92240.0,92220.0,0.02491037]
[1768293481297,0.18906063,92229.0,92206.0,0.010856]
[1768293481496,0.18906063,92223.0,92206.0,0.010856]
[1768293481692,0.09232547,92222.0,92206.0,0.010856]
[1768293481899,0.09232547,92222.0,92209.0,0.010855]
[1768293482093,0.09673516,92226.0,92200.0,0.06123785]
[1768293482293,0.09232547,92225.0,92202.0,0.00819593]
[1768293482505,0.00016264,92225.0,92206.0,0.00819593]
[1768293482701,0.00016264,92225.0,92205.0,0.09527423]
[1768293482702,6.4e-07,92225.0,92223.0,0.010854]
[1768293482891,6.4e-07,92225.0,92219.0,0.010854]
[1768293483292,6.4e-07,92225.0,92219.0,0.007854]
[1768293483604,0.09768,92225.0,92209.0,0.00819593]
[1768293484401,0.09673516,92232.0,92209.0,0.00819593]
[1768293484608,0.09768,92226.0,92205.0,0.09527423]
[1768293484810,0.09768,92226.0,92205.0,0.1053076]
[1768293485615,0.19265227,92225.0,92206.0,0.010856]
[1768293485812,0.19265227,92223.0,92206.0,0.010856]
[1768293486011,0.09750875,92221.0,92209.0,0.010855]
[1768293486213,0.19265227,92221.0,92209.0,0.010855]
[1768293486509,0.09750875,92220.0,92205.0,0.010856]
[1768293486699,0.09750875,92220.0,92208.0,0.010855]
[1768293488613,0.09750875,92219.0,92208.0,0.010855]
[1768293490924,0.09750875,92219.0,92208.0,0.006855]
[1768293491819,0.19265227,92219.0,92208.0,0.006855]
[1768293493425,0.09750875,92218.0,92208.0,0.006855]
[1768293494922,0.09301462,92225.0,92208.0,0.006855]
[1768293495128,0.09005488,92224.0,92208.0,0.006855]
[1768293495331,0.09301462,92223.0,92208.0,0.006855]
[1768293495629,0.09005488,92222.0,92208.0,0.006855]
[1768293495827,0.09301462,92221.0,92208.0,0.006855]
[1768293496130,0.09005488,92220.0,92208.0,0.006855]
[1768293496331,0.09301462,92219.0,92208.0,0.006855]
[1768293497026,0.1830695,92219.0,92208.0,0.006855]
[1768293497428,0.2807495,92218.0,92208.0,0.006855]
[1768293498029,0.09301462,92217.0,92208.0,0.006855]
[1768293502630,0.09005488,92216.0,92200.0,0.05828799]
[1768293502828,5e-07,92209.0,92200.0,0.05828799]
[1768293503029,0.09768,92218.0,92200.0,0.05828799]
[1768293503231,0.09768,92218.0,92206.0,0.010856]
[1768293503634,0.00016264,92222.0,92206.0,0.010856]
[1768293503834,0.09768,92221.0,92206.0,0.010856]
[1768293504025,0.09768,92221.0,92208.0,0.010855]
[1768293504937,0.1830695,92219.0,92208.0,0.010855]
[1768293505137,0.09005488,92216.0,92208.0,0.010855]
[1768293505333,0.1830695,92216.0,92208.0,0.010855]
[1768293505538,0.09005488,92215.0,92208.0,0.010855]
[1768293507329,0.09005488,92215.0,92203.0,0.05828799]
[1768293507530,0.09005488,92214.0,92203.0,0.05828799]
[1768293508239,0.09005488,92214.0,92204.0,0.05828799]
[1768293508441,0.09005488,92214.0,92208.0,0.010855]
[1768293512437,0.09005488,92214.0,92195.0,0.09738409]
[1768293512653,0.09005488,92212.0,92193.0,0.0495]
[1768293512833,0.00016264,92222.0,92184.0,0.05828799]
[1768293512834,0.09005488,92201.0,92184.0,0.05828799]
[1768293513028,8.8e-07,92201.0,92184.0,0.010858]
[1768293513233,8.8e-07,92201.0,92183.0,0.14688409]
[1768293513437,0.09301462,92202.0,92183.0,0.14688409]
[1768293513639,0.09317726,92202.0,92195.0,0.010857]
[1768293514046,0.09317726,92202.0,92198.0,0.010857]
[1768293514347,2.6e-07,92202.0,92198.0,0.010857]
[1768293515636,0.09772,92208.0,92201.0,0.010856]
[1768293516243,0.19076885,92208.0,92203.0,0.010856]
[1768293516438,0.09772,92207.0,92203.0,0.010856]
[1768293516638,0.09772,92206.0,92203.0,0.010856]
[1768293517738,0.21567454,92250.0,92190.0,0.010857]
[1768293517739,0.0713256,92213.0,92206.0,0.010856]
[1768293517944,0.09772,92212.0,92200.0,0.0994721]
[1768293518135,0.26236,92225.0,92200.0,0.0994721]
[1768293518336,0.11986205,92224.0,92205.0,0.00542273]
[1768293518536,0.09304885,92222.0,92205.0,0.00542273]
[1768293518737,0.09304885,92220.0,92205.0,0.00542273]
[1768293518938,0.02214205,92219.0,92205.0,0.00542273]
[1768293519140,5e-08,92218.0,92214.0,0.010855]
[1768293519450,0.09772,92218.0,92205.0,0.00542273]
[1768293520549,0.09772,92218.0,92211.0,0.010855]
[1768293521154,0.09238654,92217.0,92205.0,0.00542273]
[1768293521338,0.09238654,92213.0,92201.0,0.010856]
[1768293521538,0.09304885,92212.0,92190.0,0.05828799]
[1768293521740,0.09238654,92211.0,92190.0,0.05828799]
[1768293521951,0.09304885,92210.0,92198.0,0.010857]
[1768293522249,0.09238654,92209.0,92198.0,0.010857]
[1768293528665,0.09238654,92209.0,92191.0,0.05714499]
[1768293529250,0.00016264,92224.0,92207.0,0.09962724]
[1768293529453,0.00016264,92224.0,92217.0,0.010854]
[1768293531348,6.4e-07,92224.0,92219.0,0.010854]
[1768293532159,1.9e-07,92225.0,92219.0,0.010854]
[1768293532462,0.09772,92224.0,92219.0,0.010854]
[1768293533158,0.09772,92223.0,92219.0,0.010854]
[1768293533356,1.9e-07,92225.0,92219.0,0.010854]
[1768293533660,0.09772,92224.0,92212.0,0.00016264]
[1768293534056,0.09772,92224.0,92213.0,0.010855]
[1768293534455,0.19010654,92224.0,92213.0,0.010855]
[1768293534655,0.09238654,92223.0,92202.0,0.0994721]
[1768293534860,0.09238654,92223.0,92210.0,0.010855]
[1768293535360,0.09238654,92223.0,92212.0,0.010855]
[1768293535557,0.09238654,92223.0,92215.0,0.010855]
[1768293536664,0.09772,92224.0,92215.0,0.010855]
[1768293537567,0.09772,92224.0,92210.0,0.14590797]
[1768293538163,1.9e-07,92225.0,92211.0,0.19909934]
[1768293538368,1.9e-07,92225.0,92210.0,0.14590797]
[1768293538369,0.09772,92236.0,92219.0,0.0994721]
[1768293538568,0.09772,92236.0,92220.0,0.14705297]
[1768293538756,0.19010654,92236.0,92220.0,0.14705297]
[1768293538956,0.09238654,92235.0,92220.0,0.14705297]
[1768293539261,0.09238654,92235.0,92220.0,0.13063788]
[1768293539459,0.09238654,92235.0,92221.0,0.010854]
[1768293540568,0.09238654,92235.0,92223.0,0.010854]
[1768293540757,0.09304885,92234.0,92223.0,0.010854]
[1768293541065,0.09238654,92233.0,92221.0,0.010854]
[1768293541566,0.09238654,92233.0,92223.0,0.010854]
[1768293543685,0.09772,92236.0,92210.0,0.09772]
[1768293543686,0.09238654,92231.0,92210.0,0.09772]
[1768293543862,0.18543539,92225.0,92210.0,0.22835788]
[1768293544054,0.09238654,92223.0,92210.0,0.22835788]
[1768293544867,0.09196123,92220.0,92210.0,0.09772]
[1768293545067,0.09196123,92219.0,92210.0,0.22835788]
[1768293545259,0.09196123,92219.0,92210.0,0.22135788]
[1768293547164,0.09196123,92232.0,92212.0,0.09206702]
[1768293547474,0.09772,92231.0,92220.0,0.010854]
[1768293547767,0.18968123,92235.0,92216.0,0.093779]
[1768293547968,0.09196123,92234.0,92216.0,0.093779]
[1768293548160,0.09196123,92234.0,92221.0,0.010854]
[1768293550670,0.09196123,92233.0,92221.0,0.010854]
[1768293550871,0.09196123,92232.0,92221.0,0.010854]
[1768293551769,0.09196123,92239.0,92215.0,0.18584602]
[1768293551965,0.09196123,92237.0,92215.0,0.18584602]
[1768293552165,0.09196123,92236.0,92215.0,0.18584602]
[1768293553472,0.09196123,92236.0,92222.0,0.010854]
[1768293554073,0.09196123,92234.0,92219.0,0.010854]
[1768293554277,0.09196123,92234.0,92221.0,0.010854]
[1768293557973,0.09196123,92234.0,92215.0,0.093779]
[1768293559077,0.09196123,92234.0,92219.0,0.010854]
[1768293559265,0.09846523,92233.0,92219.0,0.010854]
[1768293561672,0.12220801,92232.0,92219.0,0.010854]
[1768293561873,0.02374278,92231.0,92219.0,0.010854]
[1768293562068,0.02374278,92230.0,92219.0,0.010854]
[1768293562271,0.02374278,92229.0,92219.0,0.010854]
[1768293562464,0.02374278,92228.0,92219.0,0.010854]
[1768293562663,0.09846523,92231.0,92215.0,0.093779]
[1768293562873,0.02374452,92230.0,92215.0,0.093779]
[1768293563062,0.02374452,92229.0,92215.0,0.093779]
[1768293563262,0.02374452,92228.0,92215.0,0.093779]
[1768293563472,0.02374452,92227.0,92215.0,0.093779]
[1768293563768,0.09846523,92231.0,92218.0,0.010854]
[1768293563974,0.12235684,92230.0,92218.0,0.010854]
[1768293564172,0.02389161,92229.0,92218.0,0.010854]
[1768293564372,0.02389161,92228.0,92218.0,0.010854]
[1768293564575,0.02389161,92227.0,92218.0,0.010854]
[1768293564777,0.09846523,92230.0,92218.0,0.010854]
[1768293565072,0.02389438,92229.0,92218.0,0.010854]
[1768293565274,0.02389438,92228.0,92218.0,0.010854]
[1768293565473,0.02389438,92227.0,92218.0,0.010854]
[1768293565775,0.02389438,92226.0,92211.0,0.09803957]
[1768293565971,0.09846523,92230.0,92211.0,0.09803957]
[1768293566179,0.0242342,92229.0,92211.0,0.09803957]
[1768293566365,0.0242342,92228.0,92211.0,0.19623563]
[1768293566566,0.0242342,92227.0,92211.0,0.19623563]
[1768293566761,0.0242342,92226.0,92211.0,0.19623563]
[1768293566976,0.0242342,92225.0,92219.0,0.010854]
[1768293567274,0.09846523,92233.0,92219.0,0.010854]
[1768293567476,0.09846523,92231.0,92219.0,0.010854]
[1768293567666,0.02424686,92230.0,92219.0,0.010854]
[1768293569376,0.12271209,92230.0,92210.0,0.31742619]
[1768293569580,0.09846523,92228.0,92213.0,0.010855]
[1768293569770,0.09846523,92226.0,92213.0,0.010855]
[1768293569971,0.12271209,92225.0,92213.0,0.010855]
[1768293570170,0.02424686,92224.0,92213.0,0.010855]
[1768293571071,0.09846523,92221.0,92210.0,0.099429]
[1768293571576,0.09846523,92221.0,92210.0,0.23008513]
[1768293571973,0.09846523,92221.0,92210.0,0.14151113]
[1768293573371,0.09846523,92221.0,92210.0,0.11351113]
[1768293573571,0.09846523,92221.0,92210.0,0.12436613]
[1768293574679,0.09846523,92221.0,92210.0,0.010855]
[1768293574881,0.09846523,92221.0,92210.0,0.14151113]
[1768293576771,0.09279412,92226.0,92210.0,0.14151113]
[1768293577881,0.09279412,92226.0,92210.0,0.13065613]
[1768293581086,0.09279412,92226.0,92208.0,0.09768]
[1768293581281,0.09279412,92226.0,92210.0,0.13065613]
[1768293582381,0.09279412,92226.0,92208.0,0.09768]
[1768293582586,0.09279412,92226.0,92210.0,0.13065613]
[1768293583277,0.09279412,92226.0,92208.0,0.09768]
[1768293584178,0.0936067,92225.0,92208.0,0.09768]
[1768293584381,0.18640082,92219.0,92195.0,0.10405242]
[1768293584685,0.09279412,92214.0,92195.0,0.20173242]
[1768293585485,0.09279412,92214.0,92195.0,0.2973502]
[1768293586281,0.09279412,92214.0,92197.0,0.010857]
[1768293587875,0.09279412,92213.0,92195.0,0.09768]
[1768293588380,0.0936067,92213.0,92195.0,0.09768]
[1768293588581,0.09279412,92212.0,92195.0,0.09768]
[1768293588882,0.09279412,92212.0,92195.0,0.07668]
[1768293590487,0.09279412,92210.0,92195.0,0.07668]
[1768293590790,0.09279412,92209.0,92195.0,0.07668]
[1768293592588,0.18640082,92209.0,92195.0,0.07668]
[1768293592892,0.09279412,92208.0,92195.0,0.07668]
[1768293593396,0.01803354,92203.0,92189.0,0.09772]
[1768293596689,0.0936067,92209.0,92189.0,0.09772]
[1768293596893,0.01726525,92208.0,92189.0,0.09772]
[1768293597094,0.01726525,92208.0,92190.0,0.010857]
[1768293597498,0.01726525,92208.0,92189.0,0.081577]
[1768293598498,0.01726525,92208.0,92190.0,0.010857]
[1768293599199,0.01726525,92208.0,92189.0,0.081577]
[1768293600195,0.01762206,92207.0,92189.0,0.081577]
[1768293600391,0.01762206,92206.0,92189.0,0.081577]
[1768293601398,0.13067949,92220.0,92189.0,0.092435]
[1768293601399,0.1158469,92209.0,92189.0,0.092435]
[1768293601599,0.04245272,92208.0,92189.0,0.092435]
[1768293601897,0.02432582,92207.0,92194.0,0.1888132]
[1768293602198,0.13067949,92230.0,92190.0,0.09561778]
[1768293602199,0.09772,92220.0,92203.0,0.09561778]
[1768293602395,0.09772,92220.0,92190.0,0.13067949]
[1768293602396,0.09772,92221.0,92206.0,0.09319542]
[1768293602702,0.09772,92221.0,92206.0,0.1888132]
[1768293603087,0.09772,92221.0,92206.0,0.09319542]
[1768293603897,0.13447155,92221.0,92203.0,0.09561778]
[1768293604798,0.03851053,92220.0,92201.0,0.09319542]
[1768293605193,0.03851053,92220.0,92201.0,0.08019542]
[1768293607305,0.09772,92221.0,92204.0,0.19895129]
[1768293607603,0.09772,92221.0,92207.0,0.19895129]
[1768293608303,0.09772,92221.0,92207.0,0.09970186]
[1768293612910,0.09772,92221.0,92207.0,0.06570186]
[1768293613610,0.09772,92221.0,92203.0,0.09924943]
[1768293614112,0.02425335,92220.0,92203.0,0.09924943]
[1768293614416,0.02425335,92219.0,92203.0,0.09924943]
[1768293614613,0.02425335,92218.0,92203.0,0.09924943]
[1768293614813,0.02425335,92217.0,92203.0,0.09924943]
[1768293615111,0.02425335,92216.0,92205.0,0.09637931]
[1768293615311,0.02425335,92215.0,92205.0,0.09637931]
[1768293615513,0.02425335,92214.0,92205.0,0.09637931]
[1768293615709,0.02425335,92213.0,92205.0,0.09637931]
[1768293615914,0.02425335,92212.0,92205.0,0.09637931]
[1768293616216,0.02425335,92211.0,92205.0,0.09637931]
[1768293616416,0.09772,92221.0,92205.0,0.09637931]
[1768293616711,0.02426224,92220.0,92205.0,0.09637931]
[1768293616914,0.02426224,92219.0,92205.0,0.09637931]
[1768293617116,0.02426224,92218.0,92205.0,0.09637931]
[1768293617303,0.02426224,92217.0,92205.0,0.09637931]
[1768293617498,0.02426224,92216.0,92205.0,0.09637931]
[1768293617698,0.02426224,92215.0,92205.0,0.09637931]
[1768293617913,0.02426224,92214.0,92205.0,0.09637931]
[1768293618102,0.02426224,92213.0,92205.0,0.09637931]
[1768293618299,0.02426492,92212.0,92205.0,0.09637931]
[1768293618503,0.010854,92220.0,92200.0,0.09637931]
[1768293618709,0.03796846,92218.0,92199.0,0.09772]
[1768293618912,0.02426492,92217.0,92199.0,0.09772]
[1768293619102,0.010854,92220.0,92201.0,0.09637931]
[1768293619103,0.02426492,92216.0,92201.0,0.09637931]
[1768293619304,0.02426492,92215.0,92201.0,0.09637931]
[1768293619503,0.02426492,92214.0,92201.0,0.18995766]
[1768293619718,0.02426492,92213.0,92201.0,0.18995766]
[1768293620014,0.02426492,92212.0,92201.0,0.09357835]
[1768293620214,0.03744196,92219.0,92201.0,0.09357835]
[1768293620404,0.02426751,92218.0,92201.0,0.09357835]
[1768293620605,0.02426751,92217.0,92201.0,0.09357835]
[1768293620806,0.02426751,92216.0,92201.0,0.07157835]
[1768293621009,0.02426751,92215.0,92201.0,0.07157835]
[1768293621204,0.02426751,92214.0,92201.0,0.07157835]
[1768293621421,0.02426751,92213.0,92201.0,0.07157835]
[1768293621718,0.03744196,92219.0,92201.0,0.07157835]
[1768293621920,0.02426807,92218.0,92202.0,0.09637931]
[1768293622116,0.02426807,92217.0,92202.0,0.09637931]
[1768293622310,0.02426807,92216.0,92202.0,0.09637931]
[1768293622504,0.02426807,92215.0,92202.0,0.09637931]
[1768293622723,0.02426807,92214.0,92202.0,0.09637931]
[1768293622913,0.02426807,92213.0,92202.0,0.09637931]
[1768293623118,0.010854,92220.0,92202.0,0.09637931]
[1768293623418,0.02426855,92219.0,92202.0,0.09637931]
[1768293623615,0.02426855,92218.0,92202.0,0.09637931]
[1768293623816,0.02426855,92217.0,92202.0,0.09637931]
[1768293624016,0.02426855,92216.0,92202.0,0.09637931]
[1768293624217,0.02426855,92215.0,92202.0,0.09637931]
[1768293624419,0.02426855,92214.0,92202.0,0.09637931]
[1768293624719,0.02426855,92213.0,92202.0,0.09637931]
[1768293625022,0.010854,92218.0,92202.0,0.09637931]
[1768293625213,0.02417304,92217.0,92202.0,0.09637931]
[1768293625414,0.02417387,92216.0,92202.0,0.09637931]
[1768293625713,0.02417387,92215.0,92202.0,0.09637931]
[1768293625913,0.02417387,92214.0,92202.0,0.09637931]
[1768293626220,0.010854,92218.0,92202.0,0.09637931]
[1768293626221,0.02417387,92213.0,92202.0,0.09637931]
[1768293626413,0.010854,92218.0,92202.0,0.09637931]
[1768293626714,0.02417487,92217.0,92202.0,0.09637931]
[1768293626910,0.02417487,92216.0,92202.0,0.09637931]
[1768293627112,0.02417487,92215.0,92202.0,0.09637931]
[1768293627412,0.02417487,92214.0,92202.0,0.09637931]
[1768293627625,0.02417487,92213.0,92202.0,0.09637931]
[1768293627810,0.02417487,92212.0,92202.0,0.09637931]
[1768293628012,0.02417487,92211.0,92202.0,0.09637931]
[1768293628210,0.010854,92218.0,92202.0,0.09637931]
[1768293628422,0.02417751,92217.0,92202.0,0.07937931]
[1768293628623,0.02417751,92216.0,92202.0,0.07937931]
[1768293628823,0.02417751,92215.0,92202.0,0.07937931]
[1768293629122,0.02417751,92214.0,92202.0,0.07937931]
[1768293629420,0.02417751,92213.0,92202.0,0.07937931]
[1768293629621,0.02417751,92212.0,92202.0,0.07937931]
[1768293629821,0.02417751,92211.0,92202.0,0.07937931]
[1768293630025,0.010854,92218.0,92202.0,0.07937931]
[1768293630226,0.02417938,92217.0,92202.0,0.07937931]
[1768293630421,0.02417938,92216.0,92202.0,0.07937931]
[1768293630725,0.02417938,92215.0,92203.0,0.09637931]
[1768293630922,0.02417938,92214.0,92203.0,0.09637931]
[1768293631220,0.010854,92221.0,92206.0,0.09357835]
[1768293631521,0.010854,92221.0,92208.0,0.18995766]
[1768293631723,0.010854,92221.0,92210.0,0.18995766]
[1768293632023,0.010854,92221.0,92212.0,0.09637931]
[1768293632222,0.010854,92221.0,92212.0,0.09231097]
[1768293632523,0.010854,92221.0,92200.0,0.08950224]
[1768293634226,0.010854,92221.0,92199.0,0.09772]
[1768293634425,0.010854,92221.0,92200.0,0.09637931]
[1768293634725,0.010854,92221.0,92206.0,0.19705601]
[1768293635027,0.010854,92221.0,92207.0,0.09719941]
[1768293636017,0.010854,92219.0,92207.0,0.09719941]
[1768293636218,0.010854,92219.0,92207.0,0.08819941]
[1768293637531,0.010854,92219.0,92207.0,0.0998566]
[1768293638134,0.010854,92219.0,92207.0,0.19705601]
[1768293638529,0.010854,92219.0,92208.0,0.19705601]
[1768293638825,0.010854,92219.0,92210.0,0.09719941]
[1768293640126,0.010854,92219.0,92209.0,0.0998566]
[1768293641030,0.010854,92217.0,92203.0,0.09719941]
[1768293641528,0.010854,92217.0,92204.0,0.09719941]
[1768293641920,0.010855,92215.0,92204.0,0.09719941]
[1768293643130,0.02407978,92214.0,92204.0,0.09719941]
[1768293643332,0.02407978,92213.0,92204.0,0.09719941]
[1768293643537,0.010855,92215.0,92204.0,0.09719941]
[1768293643728,0.02407977,92214.0,92204.0,0.09719941]
[1768293643924,0.02407977,92213.0,92204.0,0.07919941]
[1768293644125,0.010855,92215.0,92204.0,0.07919941]
[1768293644325,0.02407977,92214.0,92204.0,0.07919941]
[1768293644526,0.02407977,92213.0,92204.0,0.07919941]
[1768293644725,0.010855,92215.0,92204.0,0.07919941]
[1768293644935,0.02407978,92214.0,92204.0,0.17905601]
[1768293645133,0.02407978,92213.0,92204.0,0.0998566]
[1768293645433,0.010855,92215.0,92204.0,0.0998566]
[1768293645626,0.02407978,92214.0,92204.0,0.0998566]
[1768293645828,0.02407978,92213.0,92204.0,0.0998566]
[1768293646033,0.010855,92215.0,92204.0,0.19705601]
[1768293646235,0.02407978,92214.0,92204.0,0.19705601]
[1768293646532,0.02407978,92213.0,92204.0,0.19705601]
[1768293646732,0.02407978,92212.0,92204.0,0.19705601]
[1768293647032,0.02407978,92211.0,92205.0,0.09719941]
[1768293647235,0.02407978,92210.0,92200.0,0.22790577]
[1768293647627,0.02407978,92210.0,92201.0,0.09719941]
[1768293647822,0.02407978,92210.0,92201.0,0.19705601]
[1768293648337,0.02407978,92210.0,92202.0,0.09719941]
[1768293649626,0.02407978,92209.0,92203.0,0.09719941]
[1768293649833,0.02407978,92208.0,92204.0,0.0998566]
[1768293650033,0.010855,92215.0,92204.0,0.0998566]
[1768293650235,0.02423503,92214.0,92204.0,0.0998566]
[1768293650438,0.02423503,92213.0,92204.0,0.0998566]
[1768293650627,0.02423503,92212.0,92204.0,0.0998566]
[1768293650827,0.02423503,92211.0,92204.0,0.0998566]
[1768293651126,0.02423503,92210.0,92204.0,0.0998566]
[1768293651326,0.02423503,92209.0,92204.0,0.0998566]
[1768293651537,0.02423503,92208.0,92204.0,0.0998566]
[1768293651736,0.02423336,92207.0,92203.0,0.09719941]
[1768293652031,0.02423336,92206.0,92203.0,0.09719941]
[1768293652234,0.02423336,92205.0,92203.0,0.09719941]
[1768293652435,0.02423336,92204.0,92203.0,0.09719941]
[1768293652937,0.010855,92213.0,92203.0,0.09719941]
[1768293655636,0.010855,92211.0,92200.0,0.0998566]
[1768293655837,0.010855,92211.0,92200.0,0.23056296]
[1768293656229,0.010855,92211.0,92200.0,0.32776237]
[1768293658130,0.010855,92211.0,92201.0,0.09719941]
[1768293659343,0.010855,92211.0,92201.0,0.08519941]
[1768293660241,0.14156136,92211.0,92201.0,0.08519941]
[1768293661243,0.010855,92211.0,92201.0,0.08519941]
[1768293661545,0.010855,92212.0,92201.0,0.08519941]
[1768293663850,0.09468416,92221.0,92202.0,0.09719941]
[1768293664148,0.09772,92222.0,92201.0,0.09719941]
[1768293664149,0.010855,92213.0,92201.0,0.09719941]
[1768293664849,0.02382502,92212.0,92199.0,0.1975766]
[1768293665036,0.03468002,92211.0,92200.0,0.2290163]
[1768293665348,0.02382502,92210.0,92200.0,0.2290163]
[1768293665646,0.010855,92211.0,92201.0,0.09830994]
[1768293667147,0.010855,92211.0,92201.0,0.09330994]
[1768293670455,0.010855,92213.0,92201.0,0.09330994]
[1768293670749,0.02382677,92212.0,92202.0,0.09830994]
[1768293670950,0.02382677,92211.0,92202.0,0.09830994]
[1768293671261,0.010855,92213.0,92202.0,0.09830994]
[1768293671438,0.02382731,92212.0,92202.0,0.09830994]
[1768293671640,0.02382731,92211.0,92202.0,0.09830994]
[1768293671935,0.010855,92213.0,92202.0,0.09830994]
[1768293672147,0.02382731,92212.0,92202.0,0.09830994]
[1768293672348,0.02382731,92211.0,92202.0,0.09830994]
[1768293672552,0.010855,92213.0,92202.0,0.09830994]
[1768293672749,0.02382789,92212.0,92202.0,0.09830994]
[1768293672948,0.010855,92213.0,92202.0,0.09830994]
[1768293672949,0.02382789,92211.0,92202.0,0.09830994]
[1768293673245,0.010855,92213.0,92202.0,0.09830994]
[1768293673449,0.02387552,92212.0,92202.0,0.09830994]
[1768293673649,0.02387552,92211.0,92202.0,0.09830994]
[1768293673850,0.010855,92213.0,92202.0,0.09830994]
[1768293674052,0.02387552,92212.0,92202.0,0.09830994]
[1768293674349,0.02387552,92211.0,92202.0,0.09830994]
[1768293674550,0.010855,92213.0,92202.0,0.09830994]
[1768293674751,0.02387643,92212.0,92202.0,0.08230994]
[1768293674950,0.02387643,92211.0,92202.0,0.08230994]
[1768293675250,0.010855,92213.0,92202.0,0.08230994]
[1768293675450,0.02387752,92212.0,92202.0,0.08230994]
[1768293675649,0.02387752,92211.0,92202.0,0.08230994]
[1768293675849,0.02387752,92210.0,92202.0,0.08230994]
[1768293676045,0.02387752,92209.0,92202.0,0.08230994]
[1768293676254,0.010855,92213.0,92202.0,0.08230994]
[1768293676453,0.02387897,92212.0,92202.0,0.08230994]
[1768293676649,0.02387897,92211.0,92201.0,0.09970743]
[1768293676852,0.02387897,92210.0,92201.0,0.09970743]
[1768293677151,0.02387897,92209.0,92202.0,0.09976835]
[1768293677345,0.010855,92214.0,92202.0,0.09976835]
[1768293677542,0.010855,92212.0,92202.0,0.09976835]
[1768293677741,0.02388169,92211.0,92202.0,0.09976835]
[1768293679658,0.010855,92210.0,92196.0,0.09976835]
[1768293679856,0.02388169,92209.0,92198.0,0.09976835]
[1768293680056,0.02388169,92209.0,92199.0,0.09542296]
[1768293680258,0.02388169,92209.0,92200.0,0.09976835]